bitfinex/quotes_BTCUSD_20241024
["timestamp","ask_amount","ask_price","bid_price","bid_amount"]
[1729800319193,0.156726,68154.0,68153.0,0.001658]
[1729800319657,0.156726,68154.0,68153.0,0.003316]
[1729800322019,0.156726,68154.0,68153.0,0.0055618]
[1729800331101,0.17049211,68154.0,68153.0,0.0055618]
[1729800331947,0.17618495,68154.0,68153.0,0.0055618]
[1729800332998,0.16241884,68154.0,68153.0,0.0055618]
[1729800334289,0.01069284,68154.0,68153.0,0.1522898]
[1729800334502,0.01069284,68154.0,68153.0,0.2348898]
[1729800334953,0.01569284,68154.0,68153.0,0.2348898]
[1729800335700,0.01569284,68154.0,68153.0,0.0881618]
[1729800336345,0.01569284,68154.0,68153.0,0.2348898]
[1729800336565,0.01069284,68154.0,68153.0,0.2348898]
[1729800336778,0.00569284,68154.0,68153.0,0.72554258]
[1729800337243,8.505e-05,68156.0,68155.0,0.146724]
[1729800338063,8.505e-05,68156.0,68155.0,0.1489698]
[1729800338929,8.505e-05,68156.0,68155.0,0.56947361]
[1729800343375,8.505e-05,68156.0,68155.0,0.57447361]
[1729800344697,0.005,68169.0,68167.0,0.146696]
[1729800344928,0.22112642,68168.0,68167.0,0.146696]
[1729800345150,0.00565058,68168.0,68167.0,0.1489418]
[1729800345389,0.005,68169.0,68167.0,0.1489418]
[1729800345850,0.00565058,68168.0,68167.0,0.1489418]
[1729800346283,0.005,68169.0,68167.0,0.1489418]
[1729800346748,0.0056515,68168.0,68167.0,0.1489418]
[1729800347857,0.005,68169.0,68167.0,0.1489418]
[1729800348091,0.0056515,68168.0,68167.0,0.1489418]
[1729800348591,0.0056515,68168.0,68167.0,0.1439418]
[1729800350105,0.0056515,68168.0,68167.0,0.0022458]
[1729800353026,0.0056515,68168.0,68167.0,0.1489438]
[1729800353692,0.0056515,68168.0,68167.0,0.0022458]
[1729800354350,0.1523475,68168.0,68167.0,0.0022458]
[1729800355237,0.0056515,68168.0,68167.0,0.0022458]
[1729800359811,0.1523475,68168.0,68167.0,0.0022458]
[1729800360950,0.0056515,68168.0,68167.0,0.0022458]
[1729800361161,0.1523475,68168.0,68167.0,0.0022458]
[1729800362238,0.0056515,68168.0,68167.0,0.0022458]
[1729800362883,0.0056515,68168.0,68167.0,0.1489438]
[1729800363091,0.0056515,68168.0,68167.0,0.0022458]
[1729800363574,0.1523475,68168.0,68167.0,0.0022458]
[1729800363790,0.0056515,68168.0,68167.0,0.0022458]
[1729800364241,0.0064775,68168.0,68167.0,0.0022458]
[1729800364666,0.1531735,68168.0,68167.0,0.0022458]
[1729800365932,0.0064775,68168.0,68167.0,0.0022458]
[1729800366378,0.02023973,68168.0,68167.0,0.1489438]
[1729800368858,0.02023973,68168.0,68167.0,0.0022458]
[1729800369066,0.03400185,68168.0,68167.0,0.0022458]
[1729800369283,0.03400185,68168.0,68167.0,0.1489438]
[1729800369717,0.02023973,68168.0,68167.0,0.1489438]
[1729800370621,0.02023973,68168.0,68167.0,0.25151239]
[1729800370831,0.02023973,68168.0,68167.0,0.6803162]
[1729800371053,0.004901,68186.0,68167.0,0.6803162]
[1729800371054,0.004901,68186.0,68171.0,0.01]
[1729800371344,0.004901,68186.0,68174.0,0.62512018]
[1729800371773,0.004901,68186.0,68174.0,0.52255159]
[1729800372421,0.004901,68186.0,68174.0,0.52479739]
[1729800372639,0.004901,68186.0,68174.0,0.62736598]
[1729800372858,0.004901,68186.0,68174.0,0.52479739]
[1729800373103,0.151558,68186.0,68174.0,0.52479739]
[1729800373310,0.004901,68186.0,68174.0,0.52479739]
[1729800373534,0.15156,68186.0,68174.0,0.52479739]
[1729800373792,0.004901,68186.0,68174.0,0.52479739]
[1729800376630,0.004901,68186.0,68174.0,0.63744702]
[1729800376841,0.004901,68186.0,68174.0,0.63944702]
[1729800377940,0.004901,68186.0,68174.0,0.53487843]
[1729800378388,0.004901,68186.0,68174.0,0.68538224]
[1729800379995,0.004901,68186.0,68174.0,0.89795083]
[1729800381150,0.004901,68186.0,68185.0,0.151659]
[1729800381409,0.004901,68186.0,68185.0,0.79413239]
[1729800381663,0.004901,68186.0,68185.0,0.89319999]
[1729800384150,0.004901,68186.0,68185.0,0.80079262]
[1729800384392,0.004901,68186.0,68185.0,0.68622403]
[1729800384825,0.004901,68186.0,68185.0,0.69122403]
[1729800385035,0.004901,68186.0,68185.0,0.68106281]
[1729800385907,0.004901,68186.0,68185.0,0.67606281]
[1729800386411,0.004901,68186.0,68185.0,0.68106281]
[1729800406476,0.004901,68186.0,68185.0,0.78352719]
[1729800409091,0.004901,68186.0,68185.0,0.68106281]
[1729800409310,0.004901,68186.0,68185.0,0.78352719]
[1729800416577,0.004901,68186.0,68185.0,0.82699177]
[1729800418161,0.004901,68186.0,68185.0,0.78352719]
[1729800418321,0.004901,68186.0,68185.0,0.82707365]
[1729800418577,0.004901,68186.0,68185.0,0.78352719]
[1729800420251,0.004901,68186.0,68185.0,0.68106281]
[1729800420498,0.004901,68186.0,68185.0,0.84884689]
[1729800421352,0.004901,68186.0,68185.0,1.009687]
[1729800422453,0.004901,68186.0,68185.0,0.9443673]
[1729800423590,0.004901,68186.0,68185.0,1.03146023]
[1729800424463,0.004901,68186.0,68185.0,0.9443673]
[1729800425158,0.004901,68186.0,68185.0,0.94446244]
[1729800425607,0.004901,68186.0,68185.0,1.05345563]
[1729800426100,0.004901,68186.0,68185.0,0.89252038]
[1729800426735,0.004901,68186.0,68185.0,0.94457592]
[1729800429858,0.004901,68186.0,68185.0,1.0520403]
[1729800430280,0.004901,68186.0,68185.0,1.18292434]
[1729800430501,0.004901,68186.0,68185.0,1.0520403]
[1729800430718,0.004901,68186.0,68185.0,1.18294114]
[1729800431188,0.004901,68186.0,68185.0,1.18494114]
[1729800431635,0.004901,68186.0,68185.0,1.0540403]
[1729800432599,0.004901,68186.0,68185.0,1.05403859]
[1729800433921,0.004901,68186.0,68185.0,0.94957421]
[1729800434144,0.004901,68186.0,68185.0,1.08040673]
[1729800434563,0.004901,68186.0,68185.0,1.18287111]
[1729800434783,0.004901,68186.0,68185.0,1.08040673]
[1729800437207,0.004901,68186.0,68185.0,1.08027964]
[1729800437685,0.004901,68186.0,68185.0,0.94947644]
[1729800439913,0.004901,68186.0,68185.0,0.31145306]
[1729800440158,0.004901,68186.0,68182.0,0.22112642]
[1729800440159,0.009901,68186.0,68182.0,0.22112642]
[1729800440416,0.009901,68186.0,68183.0,0.146662]
[1729800440628,0.00845751,68185.0,68183.0,0.146662]
[1729800441079,0.00845751,68185.0,68180.0,0.44384081]
[1729800441300,0.00845751,68185.0,68182.0,0.146665]
[1729800443153,0.00845751,68185.0,68181.0,0.146668]
[1729800443375,0.00845751,68185.0,68181.0,0.29717181]
[1729800444040,0.00845751,68185.0,68181.0,0.15050381]
[1729800445426,0.00845751,68185.0,68181.0,0.29717181]
[1729800445867,0.00845751,68185.0,68181.0,0.29717081]
[1729800446940,0.00845751,68185.0,68181.0,0.15050381]
[1729800451584,0.00845751,68185.0,68181.0,0.29717081]
[1729800453884,0.00845751,68185.0,68181.0,0.15050381]
[1729800454515,0.00845751,68185.0,68181.0,0.29717081]
[1729800455847,0.00845751,68185.0,68181.0,0.15050381]
[1729800456916,0.01375839,68184.0,68181.0,0.15050381]
[1729800457161,0.00845751,68185.0,68181.0,0.29717081]
[1729800457377,0.00846321,68183.0,68181.0,0.15050381]
[1729800457803,0.009901,68186.0,68181.0,0.15050381]
[1729800458235,0.00846741,68185.0,68181.0,0.29716981]
[1729800461788,0.00846741,68185.0,68181.0,0.23150381]
[1729800462028,0.00846741,68185.0,68181.0,0.37817081]
[1729800462254,0.009901,68186.0,68183.0,0.146663]
[1729800462466,0.00884735,68184.0,68181.0,0.29717081]
[1729800462658,0.009901,68186.0,68181.0,0.39963519]
[1729800463074,0.00884735,68185.0,68181.0,0.39963419]
[1729800463560,0.009901,68186.0,68181.0,0.39963419]
[1729800463987,0.00884735,68185.0,68181.0,0.39963419]
[1729800464419,0.01375824,68184.0,68181.0,0.39963419]
[1729800465100,0.00884735,68183.0,68181.0,0.39963419]
[1729800466411,0.00884735,68183.0,68182.0,0.29716981]
[1729800466629,0.00884735,68183.0,68182.0,0.58340238]
[1729800466838,0.01375824,68184.0,68182.0,0.58340238]
[1729800466839,0.01375824,68184.0,68183.0,0.156664]
[1729800467074,0.01375824,68184.0,68183.0,0.40963219]
[1729800467495,0.01375824,68185.0,68184.0,0.146661]
[1729800467708,0.01375824,68185.0,68184.0,0.29716481]
[1729800468155,0.01375824,68185.0,68184.0,0.39962919]
[1729800469939,0.01458424,68185.0,68184.0,0.39962919]
[1729800470827,0.01458424,68185.0,68184.0,0.40462919]
[1729800471752,0.01458424,68185.0,68184.0,0.62575561]
[1729800471975,0.01458424,68185.0,68184.0,0.67432919]
[1729800473742,0.000826,68185.0,68184.0,0.67432919]
[1729800475120,0.004901,68186.0,68185.0,0.16041724]
[1729800475356,0.004901,68186.0,68185.0,0.31592105]
[1729800475568,0.004901,68186.0,68185.0,0.41838543]
[1729800478026,0.004901,68186.0,68185.0,0.42836634]
[1729800478472,0.004901,68186.0,68185.0,0.31092105]
[1729800480573,0.004901,68186.0,68185.0,0.01375824]
[1729800480574,0.009901,68186.0,68185.0,0.01375824]
[1729800481002,0.16394674,68186.0,68185.0,0.01375824]
[1729800481145,0.35934674,68186.0,68185.0,0.01375824]
[1729800481640,0.46324674,68186.0,68185.0,0.01375824]
[1729800483961,0.82621493,68186.0,68185.0,0.01375824]
[1729800484187,0.91599062,68186.0,68185.0,0.01375824]
[1729800484414,0.87463013,68186.0,68185.0,0.01375824]
[1729800484638,0.87463013,68186.0,68176.0,0.001652]
[1729800484639,0.366077,68177.0,68176.0,0.001652]
[1729800484901,0.51658081,68177.0,68176.0,0.001652]
[1729800485106,0.52387528,68177.0,68176.0,0.001652]
[1729800485770,0.66777241,68177.0,68176.0,0.001652]
[1729800485997,0.67777241,68177.0,68176.0,0.001652]
[1729800486229,0.63387528,68177.0,68176.0,0.001652]
[1729800486434,0.79112003,68177.0,68176.0,0.001652]
[1729800486641,0.79107872,68177.0,68176.0,0.001652]
[1729800486848,0.80121542,68177.0,68176.0,0.001652]
[1729800487073,0.73541103,68177.0,68176.0,0.001652]
[1729800487711,0.78125798,68177.0,68176.0,0.001652]
[1729800487858,0.73541103,68177.0,68176.0,0.001652]
[1729800488284,0.77924135,68177.0,68176.0,0.001652]
[1729800488463,0.73541103,68177.0,68176.0,0.001652]
[1729800488676,0.73741103,68177.0,68176.0,0.001652]
[1729800489520,0.79289156,68177.0,68176.0,0.001652]
[1729800489929,0.63387528,68177.0,68176.0,0.001652]
[1729800491048,0.33307147,68177.0,68176.0,0.001652]
[1729800491214,0.26397147,68177.0,68176.0,0.001652]
[1729800491674,0.26897147,68177.0,68176.0,0.001652]
[1729800492192,0.39975957,68177.0,68176.0,0.001652]
[1729800493105,0.26397147,68177.0,68176.0,0.003304]
[1729800493306,0.26897147,68177.0,68176.0,0.003304]
[1729800493524,0.26397147,68177.0,68176.0,0.003304]
[1729800493738,0.16397147,68177.0,68176.0,0.003304]
[1729800496188,0.17773373,68177.0,68176.0,0.003304]
[1729800497275,0.16397147,68177.0,68176.0,0.003304]
[1729800502718,0.01729447,68177.0,68176.0,0.003304]
[1729800503136,0.00729447,68177.0,68176.0,0.003304]
[1729800503359,0.00729447,68177.0,68176.0,0.149983]
[1729800503580,0.005,68179.0,68176.0,0.149983]
[1729800503793,0.00723181,68177.0,68176.0,0.003304]
[1729800504024,0.146673,68179.0,68176.0,0.003304]
[1729800504275,0.00723181,68177.0,68176.0,0.275404]
[1729800504486,0.004901,68186.0,68176.0,0.275404]
[1729800504487,0.014901,68186.0,68183.0,0.146664]
[1729800504724,0.22112642,68185.0,68183.0,0.146664]
[1729800504940,0.22112642,68185.0,68184.0,0.146661]
[1729800504941,0.000826,68185.0,68184.0,0.146661]
[1729800505165,0.000826,68185.0,68182.0,0.146664]
[1729800505387,0.000826,68185.0,68182.0,0.146665]
[1729800505835,0.01,68182.0,68176.0,0.275404]
[1729800506058,0.005,68180.0,68176.0,0.422081]
[1729800506281,0.15167,68180.0,68176.0,0.422081]
[1729800506503,0.005,68180.0,68176.0,0.422081]
[1729800506952,0.00729016,68179.0,68176.0,0.422081]
[1729800507675,0.00729016,68179.0,68176.0,0.275404]
[1729800507945,0.00729016,68179.0,68177.0,0.146676]
[1729800508603,0.00729016,68179.0,68176.0,0.275404]
[1729800508824,0.00729016,68179.0,68176.0,0.422081]
[1729800509958,0.00729016,68179.0,68176.0,0.275404]
[1729800510178,0.00729016,68179.0,68177.0,0.146677]
[1729800510844,0.01375927,68178.0,68177.0,0.146677]
[1729800511059,0.00729016,68179.0,68177.0,0.146677]
[1729800511287,0.005,68180.0,68179.0,0.146672]
[1729800511515,0.000826,68185.0,68184.0,0.146661]
[1729800511739,0.000826,68185.0,68184.0,0.229761]
[1729800512419,0.000826,68185.0,68184.0,0.426961]
[1729800513299,0.01458461,68185.0,68184.0,0.426961]
[1729800517852,0.01458461,68185.0,68184.0,0.2803]
[1729800518076,0.01458461,68185.0,68184.0,0.0831]
[1729800518297,0.01458461,68185.0,68184.0,0.229761]
[1729800518710,0.000826,68185.0,68184.0,0.229761]
[1729800518931,0.01458461,68185.0,68184.0,0.229761]
[1729800520218,0.004901,68186.0,68185.0,0.146659]
[1729800522572,0.004901,68186.0,68184.0,0.0831]
[1729800522770,0.004901,68186.0,68184.0,0.229761]
[1729800523001,0.00730393,68185.0,68184.0,0.229761]
[1729800523417,0.004901,68186.0,68185.0,0.146659]
[1729800523755,0.012208,68186.0,68185.0,0.146659]
[1729800523957,0.012208,68186.0,68184.0,0.0831]
[1729800524975,0.004901,68186.0,68185.0,0.146659]
[1729800525323,0.012208,68186.0,68185.0,0.146659]
[1729800526162,0.012208,68186.0,68184.0,0.229761]
[1729800526368,0.012208,68186.0,68185.0,0.146659]
[1729800526564,0.004901,68186.0,68185.0,0.146659]
[1729800526743,0.012208,68186.0,68185.0,0.146659]
[1729800529072,0.004901,68186.0,68185.0,0.146659]
[1729800530963,0.004901,68186.0,68184.0,0.0831]
[1729800531372,0.004901,68186.0,68185.0,0.146659]
[1729800531804,0.01220716,68186.0,68185.0,0.146659]
[1729800532462,0.01220716,68186.0,68185.0,0.293318]
[1729800534004,0.01220716,68186.0,68185.0,0.44382181]
[1729800534212,0.004901,68186.0,68185.0,0.63012181]
[1729800534445,0.004901,68186.0,68185.0,0.70762181]
[1729800534670,0.004901,68186.0,68185.0,0.96650139]
[1729800534913,0.004901,68186.0,68185.0,0.96850139]
[1729800536027,0.004901,68186.0,68185.0,0.97841843]
[1729800539502,0.004901,68186.0,68185.0,0.98007043]
[1729800542185,0.004901,68186.0,68185.0,0.81427381]
[1729800542546,0.004901,68186.0,68185.0,0.81627381]
[1729800544714,0.004901,68186.0,68185.0,1.03740023]
[1729800544880,0.004901,68186.0,68185.0,0.81627381]
[1729800545124,0.004901,68186.0,68185.0,0.81427381]
[1729800545329,0.004901,68186.0,68185.0,0.81927381]
[1729800546982,0.02,68199.0,68192.0,0.146644]
[1729800547185,0.02,68199.0,68192.0,0.29714781]
[1729800548404,0.02,68199.0,68192.0,0.37758032]
[1729800548605,0.02,68199.0,68192.0,0.56094781]
[1729800550627,0.02,68199.0,68192.0,0.57076753]
[1729800556665,0.02,68199.0,68192.0,0.56094781]
[1729800557086,0.02,68199.0,68192.0,0.37464781]
[1729800557298,0.02,68199.0,68185.0,0.148311]
[1729800557299,0.005,68191.0,68185.0,0.148311]
[1729800557514,0.146657,68186.0,68185.0,0.148311]
[1729800558156,0.15463621,68186.0,68185.0,0.148311]
[1729800558347,0.00797921,68186.0,68185.0,0.148311]
[1729800560352,0.00797921,68186.0,68185.0,0.001652]
[1729800560567,0.15463621,68186.0,68185.0,0.001652]
[1729800560804,0.00797921,68186.0,68185.0,0.001652]
[1729800563399,0.00797921,68186.0,68185.0,0.148311]
[1729800564078,0.01,68190.0,68185.0,0.001652]
[1729800564315,0.01,68190.0,68187.0,0.146654]
[1729800564533,0.00794631,68189.0,68187.0,0.146654]
[1729800565947,0.00794631,68189.0,68186.0,0.146657]
[1729800566151,0.00794631,68189.0,68188.0,0.146653]
[1729800566349,0.00794631,68189.0,68186.0,0.146655]
[1729800566556,0.00794631,68189.0,68185.0,0.294969]
[1729800566557,0.00794631,68189.0,68188.0,0.146653]
[1729800566772,0.00794631,68189.0,68187.0,0.15050381]
[1729800566773,0.010826,68193.0,68192.0,0.146644]
[1729800566979,0.005826,68193.0,68192.0,0.146644]
[1729800567178,0.000826,68193.0,68190.0,0.439941]
[1729800567381,0.000826,68193.0,68190.0,0.293294]
[1729800567585,0.000826,68193.0,68191.0,0.146646]
[1729800567881,0.000826,68193.0,68188.0,0.293306]
[1729800568087,0.000826,68193.0,68189.0,0.146649]
[1729800568499,0.147468,68193.0,68188.0,0.29715581]
[1729800568726,0.147468,68193.0,68189.0,0.146651]
[1729800569490,0.0110056,68192.0,68189.0,0.146651]
[1729800569709,0.0220112,68192.0,68189.0,0.146651]
[1729800569930,0.0110056,68191.0,68189.0,0.146651]
[1729800570937,0.0110056,68191.0,68189.0,0.146649]
[1729800571154,0.0110056,68191.0,68190.0,0.29552858]
[1729800571364,0.0220112,68192.0,68190.0,0.29552858]
[1729800571365,0.0220112,68192.0,68191.0,0.229646]
[1729800571568,0.0220112,68192.0,68191.0,0.56914981]
[1729800572216,0.000826,68193.0,68192.0,0.146644]
[1729800572416,0.000826,68193.0,68192.0,0.38308003]
[1729800572621,0.000826,68193.0,68192.0,0.38214781]
[1729800574496,0.000826,68193.0,68192.0,0.38014781]
[1729800590555,0.000826,68193.0,68192.0,0.56184781]
[1729800595496,0.000826,68193.0,68192.0,0.67184781]
[1729800596636,0.000826,68193.0,68192.0,0.66384781]
[1729800596876,0.000826,68193.0,68192.0,0.67384781]
[1729800597055,0.000826,68193.0,68192.0,0.96937639]
[1729800597496,0.000826,68193.0,68192.0,1.16172836]
[1729800597703,0.000826,68193.0,68192.0,1.01284878]
[1729800597904,0.000826,68193.0,68192.0,0.96937639]
[1729800598104,0.000826,68193.0,68192.0,1.0128789]
[1729800599164,0.000826,68193.0,68192.0,0.9008789]
[1729800599371,0.000826,68193.0,68192.0,0.85737639]
[1729800599992,0.000826,68193.0,68192.0,0.67567639]
[1729800600232,0.000826,68193.0,68192.0,0.59267639]
[1729800601098,0.01183019,68193.0,68192.0,0.59267639]
[1729800601303,0.000826,68193.0,68192.0,0.59267639]
[1729800601735,0.000826,68193.0,68192.0,0.59217639]
[1729800608581,0.01182974,68193.0,68192.0,0.59217639]
[1729800609222,0.000826,68193.0,68192.0,0.29552858]
[1729800609432,0.01827535,68193.0,68192.0,0.29552858]
[1729800609637,0.16491735,68193.0,68192.0,0.29552858]
[1729800611146,0.16491735,68193.0,68192.0,0.29718058]
[1729800613580,0.16491735,68193.0,68192.0,0.001652]
[1729800614264,0.01827535,68193.0,68192.0,0.001652]
[1729800614456,0.16491735,68193.0,68192.0,0.001652]
[1729800618453,0.58139693,68193.0,68192.0,0.001652]
[1729800619887,0.86990074,68193.0,68192.0,0.001652]
[1729800620096,0.9597337,68193.0,68192.0,0.001652]
[1729800620297,0.99545049,68193.0,68192.0,0.001652]
[1729800620503,0.88565929,68193.0,68192.0,0.001652]
[1729800620758,0.88565929,68193.0,68186.0,0.001652]
[1729800620759,0.462355,68187.0,68186.0,0.001652]
[1729800620971,0.76373839,68187.0,68186.0,0.001652]
[1729800621178,0.87149013,68187.0,68186.0,0.001652]
[1729800621422,0.8788856,68187.0,68186.0,0.001652]
[1729800621635,0.76913386,68187.0,68186.0,0.001652]
[1729800622057,0.75913386,68187.0,68186.0,0.001652]
[1729800622267,0.43175047,68187.0,68186.0,0.001652]
[1729800622488,0.43675047,68187.0,68186.0,0.001652]
[1729800622708,0.43175047,68187.0,68186.0,0.001652]
[1729800622913,0.43675047,68187.0,68186.0,0.001652]
[1729800623513,0.58563005,68187.0,68186.0,0.001652]
[1729800625217,0.63241589,68187.0,68186.0,0.001652]
[1729800625634,0.005,68185.0,68175.0,0.0022458]
[1729800625860,0.146677,68177.0,68175.0,0.0022458]
[1729800626072,0.156677,68177.0,68175.0,0.22337222]
[1729800626283,0.24056247,68177.0,68175.0,0.22337222]
[1729800626520,0.24056247,68177.0,68175.0,0.0022458]
[1729800628298,0.25157141,68177.0,68175.0,0.0022458]
[1729800631829,0.24404218,68177.0,68175.0,0.0022458]
[1729800632707,0.01086518,68177.0,68176.0,0.259452]
[1729800632907,0.01086518,68177.0,68176.0,0.55663481]
[1729800633147,0.01,68186.0,68176.0,0.40995581]
[1729800633375,0.01,68186.0,68185.0,0.146659]
[1729800634043,0.01,68190.0,68189.0,0.146651]
[1729800634265,0.01,68189.0,68186.0,0.293312]
[1729800634490,0.01,68189.0,68188.0,0.146653]
[1729800635131,0.156651,68189.0,68186.0,0.146656]
[1729800635872,0.156651,68189.0,68183.0,0.293326]
[1729800635873,0.156656,68187.0,68183.0,0.293326]
[1729800636113,0.01,68187.0,68184.0,0.14666]
[1729800636313,0.000826,68185.0,68184.0,0.14666]
[1729800637626,0.000826,68185.0,68180.0,0.293341]
[1729800637861,0.000826,68185.0,68180.0,0.44384481]
[1729800638101,0.000826,68185.0,68184.0,0.146661]
[1729800638310,0.000826,68185.0,68182.0,0.146666]
[1729800638522,0.000826,68185.0,68182.0,0.293332]
[1729800638943,0.000826,68185.0,68183.0,0.146664]
[1729800639166,0.000826,68185.0,68182.0,0.146666]
[1729800639381,0.000826,68185.0,68183.0,0.146663]
[1729800639782,0.000826,68185.0,68184.0,0.146661]
[1729800641760,0.00952948,68185.0,68184.0,0.146661]
[1729800641984,0.000826,68185.0,68184.0,0.146661]
[1729800642190,0.00952948,68185.0,68184.0,0.146661]
[1729800642381,0.000826,68185.0,68184.0,0.146661]
[1729800642642,0.00952948,68185.0,68184.0,0.146661]
[1729800642854,0.00808923,68185.0,68184.0,0.146661]
[1729800643304,0.00808923,68185.0,68182.0,0.293332]
[1729800643538,0.00808923,68185.0,68184.0,0.146661]
[1729800643770,0.005,68181.0,68178.0,0.146674]
[1729800643993,0.005,68181.0,68177.0,0.22112642]
[1729800644198,0.00872367,68180.0,68179.0,0.146672]
[1729800644451,0.00872367,68180.0,68175.0,0.2956078]
[1729800644661,0.00872367,68180.0,68178.0,0.146673]
[1729800644872,0.00872367,68180.0,68179.0,0.146672]
[1729800645314,0.01090845,68180.0,68179.0,0.37377581]
[1729800645533,0.01090845,68180.0,68179.0,0.56697581]
[1729800645759,0.000826,68185.0,68184.0,0.146661]
[1729800645971,0.000826,68185.0,68184.0,0.29716481]
[1729800646870,0.000826,68185.0,68184.0,0.5775978]
[1729800647107,0.000826,68185.0,68184.0,0.57466481]
[1729800650594,0.000826,68185.0,68184.0,0.424161]
[1729800650799,0.000826,68185.0,68176.0,0.001652]
[1729800650800,0.440017,68179.0,68176.0,0.001652]
[1729800651010,0.146677,68177.0,68176.0,0.001652]
[1729800651443,0.151677,68177.0,68176.0,0.001652]
[1729800651659,0.16394594,68177.0,68176.0,0.001652]
[1729800652784,0.38788891,68177.0,68176.0,0.001652]
[1729800653008,0.31282552,68177.0,68176.0,0.001652]
[1729800654624,0.16394594,68177.0,68176.0,0.001652]
[1729800667936,0.18596433,68177.0,68176.0,0.001652]
[1729800668388,0.19972582,68177.0,68176.0,0.001652]
[1729800669099,0.16394594,68177.0,68176.0,0.001652]
[1729800669321,0.17770736,68177.0,68176.0,0.001652]
[1729800669541,0.19972563,68177.0,68176.0,0.001652]
[1729800671297,0.16394594,68177.0,68176.0,0.001652]
[1729800673487,0.16390594,68177.0,68176.0,0.001652]
[1729800676187,0.16394594,68177.0,68176.0,0.001652]
[1729800676628,0.34082552,68177.0,68176.0,0.001652]
[1729800681321,0.16394594,68177.0,68176.0,0.001652]
[1729800681764,0.01730894,68177.0,68176.0,0.084352]
[1729800682686,0.16398594,68177.0,68176.0,0.084352]
[1729800685910,0.01730894,68177.0,68176.0,0.084352]
[1729800687611,0.16398594,68177.0,68176.0,0.084352]
[1729800688699,0.01230894,68177.0,68176.0,0.084352]
[1729800688953,0.01230894,68177.0,68176.0,0.421531]
[1729800688954,0.00730894,68177.0,68176.0,0.421531]
[1729800689198,4e-05,68177.0,68176.0,0.421531]
[1729800692454,0.000866,68177.0,68176.0,0.421531]
[1729800693331,0.01462536,68177.0,68176.0,0.421531]
[1729800702095,0.02838412,68177.0,68176.0,0.421531]
[1729800703473,0.01462536,68177.0,68176.0,0.421531]
[1729800704118,0.000866,68177.0,68176.0,0.421531]
[1729800704592,0.000866,68177.0,68176.0,0.52406167]
[1729800706819,0.000866,68177.0,68176.0,0.421531]
[1729800709755,0.01462496,68177.0,68176.0,0.421531]
[1729800710388,0.01462496,68177.0,68176.0,0.52406167]
[1729800710756,0.01462496,68177.0,68176.0,0.67456548]
[1729800711783,0.000866,68177.0,68176.0,0.67456548]
[1729800713466,0.000866,68177.0,68176.0,0.57203481]
[1729800720628,0.005866,68177.0,68176.0,0.274852]
[1729800720837,0.005866,68177.0,68176.0,0.148331]
[1729800721058,0.01243513,68177.0,68176.0,0.148331]
[1729800721267,0.005866,68177.0,68176.0,0.148331]
[1729800722315,0.005866,68177.0,68176.0,0.001652]
[1729800722533,0.005866,68177.0,68176.0,0.148331]
[1729800722959,0.005866,68177.0,68176.0,0.001652]
[1729800723586,0.01243513,68177.0,68176.0,0.001652]
[1729800723802,0.005866,68177.0,68176.0,0.001652]
[1729800724004,0.01243446,68177.0,68176.0,0.001652]
[1729800724226,0.005866,68177.0,68176.0,0.001652]
[1729800724432,0.01243513,68177.0,68176.0,0.001652]
[1729800724634,0.005866,68177.0,68176.0,0.001652]
[1729800724884,0.01243513,68177.0,68176.0,0.148331]
[1729800725088,0.005866,68177.0,68176.0,0.148331]
[1729800726362,0.005866,68177.0,68176.0,0.001652]
[1729800726608,0.005866,68177.0,68176.0,0.148331]
[1729800726823,0.01243513,68177.0,68176.0,0.148331]
[1729800727015,0.005866,68177.0,68176.0,0.001652]
[1729800727490,0.01243513,68177.0,68176.0,0.001652]
[1729800727725,0.157543,68177.0,68176.0,0.001652]
[1729800727952,0.26886725,68177.0,68176.0,0.001652]
[1729800729259,0.00719025,68177.0,68176.0,0.271052]
[1729800729461,0.01719025,68177.0,68176.0,0.001652]
[1729800729675,0.16386725,68177.0,68176.0,0.001652]
[1729800731393,0.01719025,68177.0,68176.0,0.001652]
[1729800731620,0.16386725,68177.0,68176.0,0.001652]
[1729800732050,0.1776289,68177.0,68176.0,0.001652]
[1729800732696,0.16386725,68177.0,68176.0,0.001652]
[1729800733794,0.01719025,68177.0,68176.0,0.001652]
[1729800735620,9.01219025,68177.0,68176.0,0.51536167]
[1729800735859,9.01219025,68177.0,68176.0,0.412831]
[1729800736098,9.01719025,68177.0,68176.0,0.412831]
[1729800736910,9.03095109,68177.0,68176.0,0.412831]
[1729800738571,9.05296671,68177.0,68176.0,0.412831]
[1729800739002,9.04296671,68177.0,68176.0,0.412831]
[1729800739243,9.00719025,68177.0,68176.0,0.412831]
[1729800740638,9.00719025,68177.0,68176.0,0.56333481]
[1729800742005,9.00719025,68177.0,68176.0,0.66586548]
[1729800742244,9.00719025,68177.0,68176.0,0.56333481]
[1729800743153,9.00719025,68177.0,68176.0,0.56533481]
[1729800743625,9.00719025,68177.0,68176.0,0.677909]
[1729800743876,9.00719025,68177.0,68176.0,0.57537833]
[1729800744091,9.00719025,68177.0,68176.0,0.677909]
[1729800744730,9.00719025,68177.0,68176.0,0.57337833]
[1729800747390,9.00719025,68177.0,68176.0,0.57537833]
[1729800747601,9.00719025,68177.0,68176.0,0.57337833]
[1729800751168,9.00719025,68177.0,68176.0,0.66586548]
[1729800751401,9.00719025,68177.0,68176.0,0.56333481]
[1729800754523,9.00719025,68177.0,68176.0,0.71208279]
[1729800758693,9.00719025,68177.0,68176.0,0.56333481]
[1729800759154,9.00719025,68177.0,68176.0,0.37423481]
[1729800760279,9.00719025,68177.0,68176.0,0.29883481]
[1729800765026,9.00719025,68177.0,68176.0,0.56933481]
[1729800766151,9.00719025,68177.0,68176.0,0.57133481]
[1729800766377,9.00719025,68177.0,68176.0,0.56933481]
[1729800766591,9.02094933,68177.0,68176.0,0.56933481]
[1729800767697,9.00719025,68177.0,68176.0,0.56933481]
[1729800768139,9.00719025,68177.0,68176.0,0.57133481]
[1729800768813,9.00719025,68177.0,68176.0,0.68133481]
[1729800769737,9.00719025,68177.0,68176.0,0.69099938]
[1729800776001,9.00719025,68177.0,68176.0,0.68899938]
[1729800776210,9.00719025,68177.0,68176.0,0.69099938]
[1729800776424,9.00719025,68177.0,68176.0,0.79349359]
[1729800777667,9.00719025,68177.0,68176.0,0.83720926]
[1729800780501,9.00719025,68177.0,68176.0,0.79349359]